bitfinex-derivatives/quotes_BTCF0:USTF0_20251118
["timestamp","ask_amount","ask_price","bid_price","bid_amount"]
[1763444608444,0.04444,90052.0,90051.0,0.04416]
[1763444610444,0.04444,90052.0,90050.0,0.00073267]
[1763444610646,0.04444,90051.0,90050.0,0.00073267]
[1763444610853,0.04444,90051.0,90050.0,0.04489267]
[1763444611356,0.04444,90051.0,90050.0,0.00073267]
[1763444611747,0.37438,90055.0,90047.0,9.742e-05]
[1763444611748,0.05453,90048.0,90047.0,9.742e-05]
[1763444612545,0.04444,90048.0,90047.0,0.04425742]
[1763444612850,0.05802,90048.0,90047.0,0.04425742]
[1763444613451,0.04444,90048.0,90047.0,0.04425742]
[1763444613662,0.04544,90048.0,90047.0,0.04425742]
[1763444614645,0.05902,90048.0,90047.0,0.04425742]
[1763444615453,0.05902,90048.0,90047.0,9.742e-05]
[1763444615659,0.04544,90048.0,90047.0,0.04425742]
[1763444616157,0.05902,90048.0,90047.0,9.742e-05]
[1763444616351,0.05802,90048.0,90047.0,9.742e-05]
[1763444616954,0.05802,90048.0,90047.0,0.04425742]
[1763444618159,0.04444,90048.0,90047.0,0.04425742]
[1763444620865,0.05802,90048.0,90047.0,0.04425742]
[1763444621452,0.05802,90048.0,90047.0,0.02212742]
[1763444621849,0.05802,90048.0,90047.0,9.742e-05]
[1763444622253,0.05902,90048.0,90047.0,0.04425742]
[1763444622757,0.04544,90048.0,90047.0,0.04425742]
[1763444623666,0.05589,90048.0,90047.0,0.04425742]
[1763444624360,0.05489,90048.0,90047.0,0.04425742]
[1763444624565,0.05589,90048.0,90047.0,0.04425742]
[1763444624862,0.05589,90048.0,90047.0,0.02212742]
[1763444625551,0.05489,90048.0,90047.0,0.02212742]
[1763444625750,0.05589,90048.0,90047.0,9.742e-05]
[1763444626154,0.05589,90048.0,90028.0,0.07823773]
[1763444626349,0.04444,90031.0,90018.0,0.07823773]
[1763444626561,0.04444,90011.0,90010.0,0.53540481]
[1763444626864,0.04444,90011.0,90010.0,0.40569267]
[1763444627261,0.04444,90011.0,90001.0,0.13044481]
[1763444627262,0.04444,90001.0,90000.0,0.17500481]
[1763444627456,0.04444,90001.0,90000.0,0.04529267]
[1763444627652,0.40534474,90011.0,90010.0,0.04416]
[1763444627964,0.40534474,90011.0,90010.0,0.04489267]
[1763444628761,0.40534474,90011.0,90010.0,0.00073267]
[1763444629660,0.40534474,90011.0,90010.0,0.02276267]
[1763444629861,0.40534474,90011.0,90010.0,0.00073267]
[1763444630259,0.40534474,90011.0,90000.0,0.0004]
[1763444630260,0.04444,90001.0,90000.0,0.0004]
[1763444630764,0.04444,89982.0,89981.0,0.40496]
[1763444630973,0.04452699,89982.0,89981.0,0.40496]
[1763444631259,0.04352699,89982.0,89981.0,0.3608]
[1763444631965,0.02154,89974.0,89973.0,0.40496]
[1763444632160,0.04444,89974.0,89973.0,0.40496]
[1763444632659,8.699e-05,89982.0,89981.0,0.04416]
[1763444632861,8.699e-05,89982.0,89981.0,0.40496]
[1763444633055,0.00016661,89990.0,89989.0,0.04416]
[1763444633258,0.04680464,89990.0,89989.0,0.04416]
[1763444635359,0.04444,89982.0,89981.0,0.40496]
[1763444635559,0.04444,89982.0,89981.0,0.3608]
[1763444635756,0.04444,89974.0,89968.0,0.00014137]
[1763444635961,0.04444,89969.0,89968.0,0.02217137]
[1763444636163,0.04444,89969.0,89968.0,0.00014137]
[1763444636356,0.04444,89969.0,89968.0,0.04430137]
[1763444636863,0.00219803,89970.0,89969.0,0.04631]
[1763444637166,0.00219803,89970.0,89968.0,0.00014137]
[1763444637167,0.04379,89969.0,89968.0,0.00014137]
[1763444637364,0.00219803,89970.0,89969.0,0.04631]
[1763444637562,0.40459,89981.0,89980.0,0.04631]
[1763444637768,0.04395661,89990.0,89989.0,0.02326]
[1763444637961,0.04615464,89990.0,89989.0,0.02326]
[1763444638269,0.04379,89981.0,89980.0,0.40711]
[1763444638665,0.04379,89969.0,89968.0,0.04645137]
[1763444638962,0.02492803,89980.0,89979.0,0.04631]
[1763444639759,0.04598803,89980.0,89979.0,0.04631]
[1763444641271,0.04598803,89980.0,89970.0,0.20524719]
[1763444641272,0.04379,89971.0,89970.0,0.02326]
[1763444641474,0.40459,89981.0,89980.0,0.02326]
[1763444641765,0.04379,89981.0,89980.0,0.04631]
[1763444641962,0.40459,89989.0,89988.0,0.02326]
[1763444642367,0.40459,89989.0,89988.0,0.04631]
[1763444642567,0.40459,89989.0,89979.0,0.20524719]
[1763444642762,0.40459,89989.0,89976.0,0.3608]
[1763444643169,0.04379,89974.0,89973.0,0.0599]
[1763444643572,0.00016661,89990.0,89989.0,0.04631]
[1763444643768,0.00016661,89990.0,89982.0,0.01244]
[1763444643769,0.3608,89998.0,89997.0,0.04631]
[1763444644068,0.40459,89998.0,89997.0,0.04631]
[1763444644273,0.04379,89981.0,89980.0,0.40711]
[1763444644463,0.04379,89973.0,89972.0,0.40711]
[1763444644662,0.04379,89980.0,89979.0,0.04631]
[1763444644863,0.001,89990.0,89989.0,0.1575573]
[1763444645076,0.40459,90007.0,90006.0,0.04631]
[1763444646067,0.38186,90007.0,89997.0,0.36096671]
[1763444646265,0.38186,90007.0,89997.0,0.04647671]
[1763444646266,0.3608,90007.0,89997.0,0.04647671]
[1763444646467,0.40459,90007.0,90006.0,0.04631]
[1763444647079,0.40559,90007.0,90006.0,0.04631]
[1763444648568,0.40459,90007.0,90006.0,0.04631]
[1763444648768,0.40559,90007.0,90006.0,0.04631]
[1763444649364,0.40559,90007.0,90006.0,0.02326]
[1763444649569,0.04379,90001.0,90000.0,0.04631]
[1763444649970,0.40559,90007.0,90006.0,0.04631]
[1763444650669,0.40559,90007.0,90006.0,0.02326]
[1763444650874,0.40459,90007.0,90006.0,0.04631]
[1763444651672,0.04379,89998.0,89997.0,0.2517239]
[1763444651872,0.04379,89998.0,89997.0,0.04647671]
[1763444653773,0.02492803,90000.0,89999.0,0.04631]
[1763444654778,0.00219803,90000.0,89999.0,0.04631]
[1763444655072,0.00319803,90000.0,89999.0,0.04631]
[1763444655471,0.001,90000.0,89999.0,0.04631]
[1763444656474,0.40459,90015.0,90014.0,0.02326]
[1763444656674,0.40459,90015.0,90014.0,0.40711]
[1763444656675,0.02568654,90015.0,90014.0,0.40711]
[1763444656874,0.40459,90042.0,90041.0,0.04631]
[1763444657181,0.01133032,90050.0,90049.0,0.04631]
[1763444657182,0.03625835,90050.0,90049.0,0.04631]
[1763444657383,0.05731835,90050.0,90049.0,0.04631]
[1763444657780,0.04598803,90050.0,90049.0,0.04631]
[1763444658578,0.00219803,90050.0,90049.0,0.40711]
[1763444658778,0.04598803,90050.0,90049.0,0.40711]
[1763444659285,0.04598803,90050.0,90049.0,0.04631]
[1763444659788,0.04698803,90050.0,90049.0,0.04631]
[1763444660478,0.00016661,90059.0,90058.0,0.04424]
[1763444661272,0.00016661,90059.0,90058.0,0.1554021]
[1763444661476,0.40389,90082.0,90081.0,0.04424]
[1763444661674,0.3608,90082.0,90081.0,0.3132]
[1763444661878,0.00027751,90086.0,90085.0,0.04424]
[1763444662773,0.04309,90077.0,90076.0,0.00016652]
[1763444662981,0.04309,90063.0,90062.0,0.3608]
[1763444663283,0.0131,90080.0,90069.0,0.04424]
[1763444663486,0.04528803,90080.0,90079.0,0.02111]
[1763444663779,0.04528803,90080.0,90079.0,0.04424]
[1763444663976,0.04309,90073.0,90072.0,0.3608]
[1763444664175,0.0131,90079.0,90070.0,0.00016652]
[1763444664176,0.04309,90071.0,90070.0,0.00016652]
[1763444664377,0.04309,90071.0,90070.0,0.26912652]
[1763444664577,0.04309,90071.0,90070.0,0.26908652]
[1763444664786,0.04309,90071.0,90070.0,0.31332652]
[1763444665079,0.04309,90077.0,90076.0,0.04424]
[1763444665282,0.04309,90071.0,90070.0,0.40520652]
[1763444665479,0.04309,90071.0,90070.0,0.62988652]
[1763444665677,0.04309,90071.0,90070.0,0.26908652]
[1763444666887,0.04309,90071.0,90070.0,0.00016652]
[1763444669186,0.04409,90071.0,90070.0,0.04561652]
[1763444669687,0.04409,90071.0,90070.0,0.00016652]
[1763444671083,0.02225,90071.0,90070.0,0.05894652]
[1763444671489,0.0434,90071.0,90070.0,0.05894652]
[1763444671689,0.0434,90071.0,90070.0,0.04561652]
[1763444671889,0.0434,90071.0,90070.0,0.00016652]
[1763444672079,0.0434,90071.0,90070.0,0.04561652]
[1763444672387,0.0434,90071.0,90070.0,0.02335652]
[1763444672980,0.0424,90071.0,90070.0,0.02335652]
[1763444675397,0.0434,90071.0,90070.0,0.04561652]
[1763444676489,0.0434,90071.0,90070.0,0.05894652]
[1763444676895,0.001,90071.0,90070.0,0.05894652]
[1763444678489,0.3608,90083.0,90070.0,0.05894652]
[1763444678698,0.04332,90071.0,90070.0,0.05894652]
[1763444679102,0.02217,90071.0,90070.0,0.05894652]
[1763444679287,0.03544,90081.0,90080.0,0.02319]
[1763444679595,0.04332,90081.0,90080.0,0.04545]
[1763444682500,0.04332,90071.0,90070.0,0.05894652]
[1763444682697,0.04332,90080.0,90079.0,0.04545]
[1763444682903,0.00219803,90080.0,90079.0,0.04545]
[1763444683496,0.00219803,90080.0,90079.0,0.04505]
[1763444683995,0.02436803,90080.0,90079.0,0.04505]
[1763444684302,0.04982406,90080.0,90079.0,0.04505]
[1763444684502,0.07097406,90080.0,90079.0,0.04505]
[1763444685798,0.07097406,90080.0,90070.0,0.17648228]
[1763444685994,0.04332,90071.0,90070.0,0.00016652]
[1763444686202,0.06880437,90071.0,90070.0,0.00016652]
[1763444687299,0.1085721,90071.0,90070.0,0.00016652]
[1763444687896,0.04332,90051.0,90050.0,0.04545]
[1763444688097,0.04332,90051.0,90049.0,0.40625]
[1763444688098,0.00219803,90050.0,90049.0,0.40625]
[1763444688296,0.02773925,90050.0,90049.0,0.40625]
[1763444688704,0.02773925,90050.0,90049.0,0.04545]
[1763444690805,0.04990925,90050.0,90049.0,0.31425]
[1763444691299,0.07105925,90050.0,90049.0,0.31425]
[1763444691702,0.07111756,90050.0,90049.0,0.04545]
[1763444691904,0.07111756,90050.0,90049.0,0.31425]
[1763444692209,0.02779756,90050.0,90049.0,0.31425]
[1763444692797,0.36096652,90059.0,90058.0,0.04545]
[1763444692999,0.02577095,90059.0,90058.0,0.04545]
[1763444693604,0.06909095,90059.0,90058.0,0.04545]
[1763444693805,0.02577095,90059.0,90058.0,0.04545]
[1763444694904,0.06909095,90059.0,90058.0,0.04545]
[1763444695805,0.04794095,90059.0,90058.0,0.04545]
[1763444696208,0.06909095,90059.0,90058.0,0.04545]
[1763444696397,0.02577095,90059.0,90058.0,0.04545]
[1763444698607,0.07139095,90059.0,90058.0,0.31425]
[1763444699011,0.04830095,90059.0,90058.0,0.31425]
[1763444699414,0.00219803,90060.0,90059.0,0.04452]
[1763444699911,0.03985804,90072.0,90071.0,0.04452]
[1763444700111,0.03985804,90075.0,90071.0,0.04452]
[1763444700406,0.40642,90073.0,90072.0,0.04452]
[1763444700613,0.40642,90073.0,90072.0,0.31332]
[1763444701001,0.38333,90073.0,90072.0,0.326]
[1763444701204,0.40642,90073.0,90072.0,0.326]
[1763444701804,0.3608,90073.0,90072.0,0.326]
[1763444702007,0.04578652,90081.0,90080.0,0.04452]
[1763444702605,0.00016652,90081.0,90080.0,0.04452]
[1763444703109,0.04578652,90081.0,90080.0,0.04452]
[1763444703309,0.02269652,90081.0,90080.0,0.04452]
[1763444703814,0.00016652,90081.0,90080.0,0.04452]
[1763444704000,0.02269652,90081.0,90080.0,0.04452]
[1763444704713,0.00016652,90081.0,90080.0,0.04452]
[1763444707410,8.637e-05,90086.0,90085.0,0.04452]
[1763444707612,8.637e-05,90086.0,90085.0,0.31332]
[1763444708815,8.637e-05,90086.0,90085.0,0.42432]
[1763444709116,0.45100894,90112.0,90102.0,0.04452]
[1763444709311,0.04562,90095.0,90094.0,0.40532]
[1763444709507,0.04562,90095.0,90094.0,0.04452]
[1763444709718,0.02472803,90090.0,90089.0,0.04452]
[1763444710017,0.00219803,90090.0,90089.0,0.31328]
[1763444710220,0.04578652,90099.0,90098.0,0.04452]
[1763444710413,0.00016652,90099.0,90098.0,0.04452]
[1763444711319,0.00116652,90099.0,90098.0,0.04452]
[1763444712720,0.00116652,90099.0,90098.0,0.1556335]
[1763444713014,0.40642,90123.0,90122.0,0.04452]
[1763444713222,0.43186186,90123.0,90122.0,0.04452]
[1763444713612,0.04589739,90126.0,90125.0,0.04452]
[1763444713922,0.04589739,90126.0,90125.0,0.31328]
[1763444714224,0.00027739,90126.0,90125.0,0.31328]
[1763444714617,0.04589739,90126.0,90125.0,0.31328]
[1763444715722,0.04562,90120.0,90119.0,0.3608]
[1763444715920,0.04562,90117.0,90116.0,0.00016652]
[1763444718825,0.04662,90117.0,90116.0,0.00016652]
[1763444719624,0.04485,90100.0,90099.0,0.05706]
[1763444719819,0.04704803,90100.0,90099.0,0.05706]
[1763444720017,0.02472803,90100.0,90099.0,0.05706]
[1763444720213,0.3608,90107.0,90106.0,0.04526]
[1763444720726,0.00073,90110.0,90109.0,0.04526]
[1763444720925,0.00016652,90116.0,90115.0,0.04526]
[1763444721925,0.02316652,90116.0,90115.0,0.04526]
[1763444722128,0.04548652,90116.0,90115.0,0.04526]
[1763444722317,0.04532,90111.0,90110.0,0.00219803]
[1763444722517,0.40612,90111.0,90110.0,0.06090803]
[1763444722722,0.3838,90111.0,90110.0,0.06090803]
[1763444722922,0.40612,90111.0,90110.0,0.06090803]
[1763444723925,0.40612,90111.0,90110.0,0.00219803]
[1763444724616,0.40612,90111.0,90110.0,0.02442803]
[1763444724926,0.3608,90111.0,90110.0,0.06090803]
[1763444725120,0.3618,90111.0,90110.0,0.06090803]
[1763444725425,0.001,90111.0,90110.0,0.06090803]
[1763444725724,0.00016652,90116.0,90115.0,0.04526]
[1763444725930,0.04548652,90116.0,90115.0,0.04526]
[1763444728324,0.07182791,90116.0,90115.0,0.04526]
[1763444728725,0.04499,90111.0,90110.0,0.06119803]
[1763444728927,0.40579,90111.0,90110.0,0.00219803]
[1763444729147,0.40579,90111.0,90110.0,0.04678803]
[1763444729928,0.40679,90111.0,90110.0,0.04678803]
[1763444730533,0.40679,90111.0,90110.0,0.06045803]
[1763444731036,0.40679,90111.0,90110.0,0.02346803]
[1763444731234,0.40579,90111.0,90110.0,0.02346803]
[1763444731536,0.43215215,90111.0,90110.0,0.00219803]
[1763444731834,0.40679,90111.0,90110.0,0.02346803]
[1763444732831,0.40679,90111.0,90110.0,0.04678803]
[1763444733131,0.40679,90111.0,90110.0,0.00219803]
[1763444733430,0.40679,90111.0,90110.0,0.02346803]
[1763444734023,0.40679,90111.0,90110.0,0.04678803]
[1763444734331,0.43217716,90111.0,90110.0,0.02346803]
[1763444734835,0.43217716,90111.0,90110.0,0.04678803]
[1763444735023,0.40679,90111.0,90110.0,0.04678803]
[1763444735229,0.38011059,90111.0,90110.0,0.04678803]
[1763444735427,0.3618,90111.0,90110.0,0.04678803]
[1763444735932,0.001,90111.0,90110.0,0.04678803]
[1763444737026,0.00016652,90116.0,90115.0,0.04459]
[1763444737233,0.00016652,90116.0,90115.0,0.31323]
[1763444738225,0.00116652,90116.0,90115.0,0.31323]
[1763444738735,0.00083348,90116.0,90115.0,0.31323]
[1763444738935,0.00027739,90126.0,90125.0,0.04459]
[1763444739436,0.05095854,90126.0,90125.0,0.04459]
[1763444740332,0.02569854,90126.0,90125.0,0.04459]
[1763444740935,0.03832854,90126.0,90125.0,0.04459]
[1763444741332,0.03932854,90126.0,90125.0,0.04459]
[1763444741632,0.02669854,90126.0,90125.0,0.04459]
[1763444742732,0.03932854,90126.0,90125.0,0.04459]
[1763444742938,0.05195854,90126.0,90125.0,0.04459]
[1763444743231,0.02526,90121.0,90120.0,0.00219803]
[1763444743434,0.05068115,90121.0,90120.0,0.00219803]
[1763444743634,0.05068115,90121.0,90120.0,0.04678803]
[1763444744839,0.02542115,90121.0,90120.0,0.04678803]
[1763444745044,0.00027739,90126.0,90125.0,0.04459]
[1763444745339,0.02572348,90126.0,90125.0,0.04459]
[1763444745643,0.02572348,90126.0,90124.0,0.2686]
[1763444745644,0.02526,90125.0,90124.0,0.2686]
[1763444745844,0.02544609,90125.0,90124.0,0.31319]
[1763444747444,0.05170609,90125.0,90124.0,0.31319]
[1763444748040,0.05070609,90125.0,90124.0,0.31319]
[1763444748238,0.05170609,90125.0,90124.0,0.31319]
[1763444750946,0.05070609,90125.0,90124.0,0.31319]
[1763444751146,0.02544609,90125.0,90124.0,0.31319]
[1763444753533,0.41147186,90125.0,90124.0,0.02127]
[1763444753739,0.41147186,90125.0,90120.0,0.02346803]
[1763444753740,0.02526,90121.0,90120.0,0.02346803]
[1763444753939,0.05067186,90121.0,90120.0,0.00219803]
[1763444754146,0.05067186,90121.0,90120.0,0.04678803]
[1763444756147,0.05067186,90121.0,90120.0,0.02346803]
[1763444756342,0.05067186,90121.0,90116.0,0.00016652]
[1763444756343,0.02526,90117.0,90116.0,0.00016652]
[1763444756540,0.41147186,90117.0,90116.0,0.00016652]
[1763444756740,0.41147186,90117.0,90116.0,0.04475652]
[1763444758542,0.38621186,90117.0,90116.0,0.04475652]
[1763444759160,0.38721186,90117.0,90116.0,0.04475652]
[1763444759353,0.39984186,90117.0,90116.0,0.04475652]
[1763444759852,0.41247186,90117.0,90116.0,0.04475652]
[1763444760152,0.41147186,90117.0,90116.0,0.04475652]
[1763444760545,0.39884186,90117.0,90116.0,0.04475652]
[1763444760747,0.41247186,90117.0,90116.0,0.04475652]
[1763444760945,0.41247186,90117.0,90116.0,0.04447652]
[1763444761143,0.35248925,90127.0,90126.0,0.04595]
[1763444761340,0.02644333,90127.0,90126.0,0.04595]
[1763444763250,0.02744333,90127.0,90126.0,0.04595]
[1763444763756,0.001,90127.0,90126.0,0.04595]
[1763444764048,0.3608,90138.0,90134.0,0.04595]
[1763444764248,0.3608,90138.0,90134.0,0.0237]
[1763444764552,0.02246927,90135.0,90134.0,0.0237]
[1763444764951,0.04413,90131.0,90121.0,0.3608]
[1763444765154,0.04413,90131.0,90116.0,0.00016652]
[1763444765155,0.3608,90124.0,90123.0,0.04595]
[1763444765355,0.00073,90130.0,90129.0,0.04595]
[1763444765854,0.04413,90124.0,90123.0,0.31451]
[1763444766754,0.3608,90126.0,90123.0,0.31451]
[1763444766755,0.40493,90126.0,90125.0,0.04595]
[1763444767253,0.41857,90126.0,90125.0,0.04595]
[1763444767553,0.40493,90126.0,90125.0,0.04595]
[1763444768352,0.40493,90126.0,90123.0,0.26856]
[1763444768353,0.04413,90124.0,90123.0,0.26856]
[1763444768855,0.04413,90124.0,90123.0,0.29147]
[1763444769044,0.04413,90124.0,90123.0,0.31451]
[1763444769551,0.04413,90121.0,90120.0,0.00219803]
[1763444769749,0.04413,90117.0,90107.0,0.26856]
[1763444769948,0.40493,90117.0,90116.0,0.04611652]
[1763444770152,0.40493,90117.0,90116.0,0.00016652]
[1763444770949,0.40593,90117.0,90116.0,0.00016652]
[1763444771549,0.40593,90117.0,90116.0,0.04611652]
[1763444772156,0.3618,90117.0,90116.0,0.04611652]
[1763444772354,0.02309,90120.0,90119.0,0.04595]
[1763444773562,0.00073,90120.0,90119.0,0.04595]
[1763444774057,0.00173,90120.0,90119.0,0.04595]
[1763444774457,0.001,90120.0,90119.0,0.04595]
[1763444775353,0.001,90120.0,90119.0,0.40675]
[1763444775562,0.00010927,90135.0,90134.0,0.04595]
[1763444775563,0.04423927,90135.0,90134.0,0.04595]
[1763444775757,0.07035588,90135.0,90134.0,0.04595]
[1763444776066,0.08399588,90135.0,90134.0,0.04595]
[1763444776652,0.04413,90131.0,90130.0,0.02510803]
[1763444776847,0.07024661,90131.0,90130.0,0.04814803]
[1763444777263,0.07024661,90131.0,90130.0,0.02510803]
[1763444777462,0.07024661,90131.0,90130.0,0.00219803]
[1763444777663,0.07024661,90131.0,90130.0,0.04814803]
[1763444778860,0.07124661,90131.0,90130.0,0.04814803]
[1763444779561,0.07124661,90131.0,90130.0,0.02510803]
[1763444779764,0.07124661,90131.0,90130.0,0.00219803]
[1763444780259,0.07124661,90131.0,90130.0,0.02549803]
[1763444781354,0.07124661,90131.0,90130.0,0.04728803]
[1763444781556,0.02711661,90131.0,90130.0,0.04728803]
[1763444781761,0.0273876,90131.0,90130.0,0.04728803]
[1763444782559,0.001,90131.0,90130.0,0.04728803]
[1763444782755,0.04423927,90135.0,90134.0,0.04509]
[1763444782964,0.0704956,90135.0,90134.0,0.04509]
[1763444784457,0.04413,90131.0,90130.0,0.02549803]
[1763444785158,0.04413,90131.0,90130.0,0.04728803]
[1763444785663,0.04413,90131.0,90130.0,0.00219803]
[1763444785966,0.07038178,90131.0,90130.0,0.00219803]
[1763444786369,0.07038178,90131.0,90130.0,0.04728803]
[1763444786568,0.04413,90131.0,90130.0,0.02549803]
[1763444786865,0.04413,90131.0,90130.0,0.00219803]
[1763444787068,0.07038282,90131.0,90130.0,0.00219803]
[1763444787262,0.07038282,90131.0,90130.0,0.04872803]
[1763444787860,0.07138282,90131.0,90130.0,0.04872803]
[1763444788058,0.07138282,90131.0,90130.0,0.02376803]
[1763444788263,0.07138282,90131.0,90130.0,0.04699803]
[1763444788461,0.07038282,90131.0,90130.0,0.04699803]
[1763444788659,0.07138282,90131.0,90130.0,0.04699803]
[1763444788965,0.07138282,90131.0,90130.0,0.00219803]
[1763444789564,0.04646,90124.0,90123.0,0.26856]
[1763444789860,0.07271282,90124.0,90123.0,0.26856]
[1763444790263,0.02625282,90124.0,90123.0,0.0448]
[1763444790463,0.001,90131.0,90130.0,0.0448]
[1763444790769,0.04957804,90131.0,90130.0,0.04699803]
[1763444790970,0.07372804,90131.0,90130.0,0.04699803]
[1763444791466,0.05057804,90131.0,90130.0,0.04699803]
[1763444791667,0.02626804,90131.0,90130.0,0.04699803]
[1763444791971,0.07272804,90131.0,90130.0,0.04699803]
[1763444801375,0.02626804,90131.0,90130.0,0.04699803]
[1763444801574,0.00010927,90135.0,90134.0,0.0448]
[1763444801773,0.04656927,90135.0,90134.0,0.0448]
[1763444802267,0.07292172,90135.0,90134.0,0.0448]
[1763444802477,0.07292172,90135.0,90134.0,0.02157]
[1763444802975,0.04646,90131.0,90130.0,0.40779803]
[1763444803371,0.04646,90131.0,90130.0,0.04699803]
[1763444804674,0.07281872,90131.0,90130.0,0.04699803]
[1763444804974,0.07281872,90131.0,90130.0,0.00219803]
[1763444805674,0.04646,90118.0,90117.0,0.0448]
[1763444805865,0.04646,90118.0,90117.0,0.31332]
[1763444806674,0.00073,90120.0,90119.0,0.0448]
[1763444806874,0.04646,90126.0,90125.0,0.0448]
[1763444807069,0.07282248,90126.0,90125.0,0.0448]
[1763444807768,0.02636248,90126.0,90125.0,0.0448]
[1763444808170,0.02636248,90126.0,90124.0,0.3608]
[1763444808171,0.04719,90130.0,90129.0,0.02157]
[1763444808365,0.04646,90118.0,90117.0,0.31332]
[1763444809279,0.04646,90117.0,90116.0,0.00016652]
[1763444809474,0.43386178,90117.0,90116.0,0.00016652]
[1763444810374,0.43386178,90117.0,90116.0,0.04496652]
[1763444812473,0.43386178,90117.0,90116.0,0.00016652]
[1763444813180,0.43386178,90117.0,90116.0,0.04496652]
[1763444813477,0.43386178,90117.0,90116.0,0.02173652]
[1763444813679,0.43386178,90117.0,90116.0,0.00016652]
[1763444814769,0.43386178,90117.0,90116.0,0.04496652]
[1763444815174,0.43386178,90117.0,90116.0,0.00016652]
[1763444816472,0.43486178,90117.0,90116.0,0.04496652]
[1763444817078,0.07406178,90117.0,90116.0,0.04496652]
[1763444817668,0.02760178,90117.0,90116.0,0.04496652]
[1763444818276,0.05086178,90117.0,90116.0,0.04496652]
[1763444818676,0.07249178,90117.0,90116.0,0.04496652]
[1763444818877,0.07349178,90117.0,90116.0,0.04496652]
[1763444819476,0.07249178,90117.0,90116.0,0.04496652]
[1763444819681,0.07349178,90117.0,90116.0,0.04496652]
[1763444820186,0.05086178,90117.0,90116.0,0.04496652]
[1763444821187,0.02760178,90117.0,90116.0,0.04496652]
[1763444821388,0.04599927,90135.0,90134.0,0.04228]
[1763444821580,0.07219967,90135.0,90134.0,0.04228]
[1763444822681,0.07319967,90135.0,90134.0,0.04228]
[1763444823881,0.04589,90131.0,90130.0,0.02342803]
[1763444824077,0.04589,90131.0,90130.0,0.00219803]
[1763444824482,0.04589,90123.0,90121.0,0.13020253]
[1763444824787,0.01325,90128.0,90120.0,0.13020253]
[1763444824788,0.04589,90121.0,90120.0,0.00219803]
[1763444825585,0.04589,90121.0,90120.0,0.02342803]
[1763444826489,0.04589,90121.0,90120.0,0.00219803]
[1763444827387,0.04589,90121.0,90120.0,0.02342803]
[1763444827588,0.04589,90121.0,90120.0,0.04447803]
[1763444828088,0.04689,90121.0,90120.0,0.00219803]
[1763444829092,0.05914,90117.0,90113.0,0.3608]
[1763444830291,0.05914,90117.0,90116.0,0.02139652]
[1763444830490,0.04589,90117.0,90116.0,0.04244652]
[1763444831390,0.04689,90117.0,90116.0,0.04244652]
[1763444831790,0.001,90117.0,90116.0,0.04244652]
[1763444832195,0.04662,90120.0,90119.0,0.04228]
[1763444832400,0.00073,90120.0,90119.0,0.04228]
[1763444833590,0.00010927,90135.0,90125.0,0.04228]
[1763444833789,0.04599927,90135.0,90134.0,0.04228]
[1763444833990,0.07228148,90135.0,90134.0,0.04228]
[1763444834198,0.08553148,90135.0,90134.0,0.04228]
[1763444834590,0.07228148,90135.0,90134.0,0.04228]
[1763444834897,0.02639148,90135.0,90134.0,0.04228]
[1763444835097,0.07228148,90135.0,90134.0,0.04228]
[1763444835286,0.07328148,90135.0,90134.0,0.04228]
[1763444835490,0.02739148,90135.0,90134.0,0.04228]
[1763444835893,0.00110927,90135.0,90134.0,0.3108]
[1763444837593,0.00010927,90135.0,90134.0,0.3108]
[1763444837999,0.40669,90151.0,90150.0,0.04228]
[1763444838203,0.43359947,90151.0,90150.0,0.04447803]
[1763444838396,0.43359947,90151.0,90150.0,0.02342803]
[1763444838601,0.43359947,90151.0,90150.0,0.00219803]
[1763444839191,0.43459947,90151.0,90150.0,0.00219803]
[1763444839903,0.001,90151.0,90150.0,0.04785803]
[1763444840100,0.40414,90163.0,90162.0,0.04566]
[1763444840307,0.3608,90163.0,90162.0,0.32724]
[1763444840497,0.3608,90180.0,90165.0,0.04566]
[1763444840703,0.3608,90180.0,90165.0,0.40646]
[1763444840898,0.40414,90188.0,90187.0,0.04566]
[1763444841093,0.09049964,90203.0,90202.0,0.04566]
[1763444841294,0.09049964,90203.0,90202.0,0.31414]
[1763444841803,0.04334,90203.0,90202.0,0.31414]
[1763444842111,0.40414,90214.0,90213.0,0.04566]
[1763444842298,0.38229,90214.0,90213.0,0.04566]
[1763444842498,0.38229,90214.0,90213.0,0.3141]
[1763444842705,0.3608,90214.0,90213.0,0.3141]
[1763444843600,0.38229,90223.0,90213.0,0.26844]
[1763444843903,0.3608,90223.0,90222.0,0.04566]
[1763444844099,0.3608,90223.0,90222.0,0.05694]
[1763444844302,0.40414,90241.0,90240.0,0.04566]
[1763444844505,0.40414,90241.0,90240.0,0.04785803]
[1763444845095,0.3608,90241.0,90240.0,0.04785803]
[1763444845299,0.3608,90252.0,90245.0,0.04566]
[1763444846097,0.04361702,90246.0,90245.0,0.31406]
[1763444846303,0.02176702,90246.0,90245.0,0.31406]
[1763444846806,0.04279,90242.0,90241.0,0.3608]
[1763444846996,0.04279,90242.0,90241.0,0.62916]
[1763444847200,0.04279,90242.0,90241.0,0.65224]
[1763444847401,0.04279,90242.0,90241.0,0.67351]
[1763444847604,0.00127702,90246.0,90245.0,0.04435]
[1763444848412,0.00027702,90246.0,90245.0,0.04435]
[1763444849208,0.00127702,90246.0,90245.0,0.04435]
[1763444849713,0.04380702,90246.0,90245.0,0.04435]
[1763444850010,0.04380702,90246.0,90245.0,0.31263]
[1763444850812,0.04380702,90246.0,90245.0,0.02308]
[1763444851004,0.00127702,90246.0,90245.0,0.31263]
[1763444852109,0.00027702,90246.0,90245.0,0.31263]
[1763444852306,0.00127702,90246.0,90245.0,0.31263]
[1763444854405,0.00027702,90246.0,90245.0,0.31263]
[1763444854707,0.3608,90261.0,90260.0,0.04435]
[1763444854915,0.3608,90261.0,90260.0,0.31474803]
[1763444855406,0.3608,90270.0,90269.0,0.04435]
[1763444855608,0.04253,90271.0,90270.0,0.02527803]
[1763444856205,0.04253,90271.0,90270.0,0.04654803]
[1763444856811,0.04253,90271.0,90270.0,0.00219803]
[1763444857105,0.04253,90261.0,90260.0,0.20704745]
[1763444857412,0.05578,90270.0,90260.0,0.27039803]
[1763444857615,0.04253,90261.0,90260.0,0.47744548]
[1763444857907,0.04253,90261.0,90260.0,0.31474803]
[1763444858411,0.01325,90270.0,90260.0,0.31474803]